[Event "Czech Open GM 2020"]
[Site "Pardubice"]
[Date "2020.09.27"]
[Round "8.10"]
[White "Parvanyan, Ashot"]
[Black "Krasteva, Beloslava"]
[Result "1/2-1/2"]
[ECO "B82"]
[WhiteElo "2458"]
[BlackElo "2296"]
[Annotator "ChessBase"]
[PlyCount "124"]
[EventDate "2020.09.21"]
[EventCountry "CZE"]
[SourceTitle "playchess.com"]
[Source "ChessBase"]
[SourceQuality "1"]
[TimeControl "40/5400+30:1800+30"]

1. e4 {[%emt 0:00:00]} c5 {[%emt 0:00:09]} 2. Nf3 {[%emt 0:00:00]} d6 {[%emt 0:00:16]} 3. d4 {[%emt 0:00:04]} cxd4 {[%emt 0:00:14]} 4. Nxd4 {[%emt 0:00:05]} Nf6 {[%emt 0:00:07]} 5. Nc3 {[%emt 0:00:04]} a6 {[%emt 0:00:04]} 6. Bd3 {[%emt 0:00:08]} e6 {[%emt 0:03:29]} 7. f4 {[%emt 0:00:43]} Be7 {[%emt 0:03:09]} 8. e5 {[%emt 0:14:27]} Nfd7 {[%emt 0:12:13]} 9. exd6 {[%emt 0:08:21]} Bxd6 {[%emt 0:00:38]} 10. Ne4 {[%emt 0:00:50]} Nc5 {[%emt 0:07:04]} 11. Nxd6+ {[%emt 0:02:39]} Qxd6 {[%emt 0:00:03]} 12. Be2 {[%emt 0:00:29]} O-O {[%emt 0:02:44]} 13. O-O {[%emt 0:02:59]} Rd8 {[%emt 0:03:15]} 14. Be3 {[%emt 0:10:26]} e5 {[%emt 0:13:01]} 15. Nb3 {[%emt 0:05:15]} Qc7 {[%emt 0:01:44]} 16. Qe1 {[%emt 0:00:59]} Nxb3 {[%emt 0:01:25]} 17. cxb3 {[%emt 0:00:33]} Nc6 {[%emt 0:01:59]} 18. Rc1 {[%emt 0:08:41]} exf4 {[%emt 0:07:33]} 19. Bxf4 {[%emt 0:00:19]} Qe7 {[%emt 0:00:15]} 20. Qf2 {[%emt 0:06:24]} Be6 {[%emt 0:02:10]} 21. Rc3 {[%emt 0:14:44]} Nd4 {[%emt 0:05:15]} 22. Bd1 {[%emt 0:00:20]} Rac8 {[%emt 0:04:03]} 23. Rxc8 {[%emt 0:07:34]} Bxc8 {[%emt 0:00:16]} 24. Be3 {[%emt 0:03:34]} Nf5 {[%emt 0:03:27]} 25. Bb6 {[%emt 0:01:20]} Re8 {[%emt 0:01:48]} 26. Bc2 {[%emt 0:01:28]} Nh6 {[%emt 0:06:23]} 27. h3 {[%emt 0:04:03]} f6 {[%emt 0:03:30]} 28. Bd3 {[%emt 0:01:13]} Bd7 {[%emt 0:04:03]} 29. Qc2 {[%emt 0:01:49]} f5 {[%emt 0:02:22]} 30. Qc7 {[%emt 0:03:03]} Bc6 {[%emt 0:01:52]} 31. Qf4 {[%emt 0:01:11]} Be4 {[%emt 0:02:08]} 32. Bc4+ {[%emt 0:01:41]} Kh8 {[%emt 0:00:33]} 33. Rd1 {[%emt 0:00:27]} Ng8 {[%emt 0:04:00]} 34. a4 {[%emt 0:00:33]} Nf6 {[%emt 0:01:17]} 35. a5 {[%emt 0:00:31]} h6 {[%emt 0:00:46]} 36. Qf2 {[%emt 0:00:28]} Nd7 {[%emt 0:01:44]} 37. Bd4 {[%emt 0:00:26]} Kh7 {[%emt 0:00:38]} 38. Bc3 {[%emt 0:00:26]} Ne5 {[%emt 0:00:32]} 39. Bf1 {[%emt 0:00:37]} Nc6 {[%emt 0:01:07]} 40. Qb6 {[%emt 0:00:32]} Rd8 {[%emt 0:01:28]} 41. Rxd8 {[%emt 0:02:02]} Nxd8 {[%emt 0:01:03]} 42. b4 {[%emt 0:03:12]} Ne6 {[%emt 0:05:24]} 43. Be5 {[%emt 0:05:20]} Nf8 {[%emt 0:06:38]} 44. Qd6 {[%emt 0:04:16]} Qe8 {[%emt 0:02:34]} 45. Qb8 {[%emt 0:11:07]} Qxb8 {[%emt 0:07:46]} 46. Bxb8 {[%emt 0:00:05]} Nd7 {[%emt 0:00:23]} 47. Bd6 {[%emt 0:01:12]} Bc6 {[%emt 0:00:09]} 48. Kf2 {[%emt 0:01:15]} Kg6 {[%emt 0:03:50]} 49. Ke3 {[%emt 0:00:31]} Kf6 {[%emt 0:00:30]} 50. Kd4 {[%emt 0:00:19]} Ke6 {[%emt 0:00:33]} 51. Bc7 {[%emt 0:01:21]} Ke7 {[%emt 0:01:17]} 52. g3 {[%emt 0:01:24]} Ke6 {[%emt 0:02:56]} 53. Bc4+ {[%emt 0:01:03]} Ke7 {[%emt 0:00:09]} 54. Ba2 {[%emt 0:02:55]} g6 {[%emt 0:02:54]} 55. Bf4 {[%emt 0:00:58]} g5 {[%emt 0:00:53]} 56. Bc7 {[%emt 0:00:21]} h5 {[%emt 0:01:11]} 57. h4 {[%emt 0:00:57]} gxh4 {[%emt 0:00:40]} 58. gxh4 {[%emt 0:00:03]} Nf8 {[%emt 0:00:12]} 59. Bg3 {[%emt 0:01:03]} Ng6 {[%emt 0:00:32]} 60. Bb1 {[%emt 0:00:34]} f4 {[%emt 0:00:37]} 61. Bf2 {[%emt 0:00:33]} Kf6 {[%emt 0:00:29]} 62. Bxg6 {[%emt 0:00:30]} Kxg6 {[%emt 0:00:07]} 1/2-1/2

[Event "Czech Open GM 2020"]
[Site "Pardubice"]
[Date "2020.09.27"]
[Round "8.11"]
[White "Storme, Isak"]
[Black "Lizak, Peter"]
[Result "1-0"]
[ECO "C03"]
[WhiteElo "2353"]
[BlackElo "2457"]
[Annotator "ChessBase"]
[PlyCount "89"]
[EventDate "2020.09.21"]
[EventCountry "CZE"]
[SourceTitle "playchess.com"]
[Source "ChessBase"]
[SourceQuality "1"]
[TimeControl "40/5400+30:1800+30"]

1. e4 {[%emt 0:00:00]} e6 {[%emt 0:03:48]} 2. d4 {[%emt 0:00:00]} d5 {[%emt 0:00:06]} 3. Nd2 {[%emt 0:00:00]} h6 {[%emt 0:05:01]} 4. c3 {[%emt 0:07:05]} c5 {[%emt 0:00:41]} 5. Ngf3 {[%emt 0:03:42]} Nf6 {[%emt 0:00:12]} 6. exd5 {[%emt 0:00:26]} exd5 {[%emt 0:00:20]} 7. Bb5+ {[%emt 0:02:46]} Nc6 {[%emt 0:16:21]} 8. O-O {[%emt 0:05:33]} Bd6 {[%emt 0:27:40]} 9. Re1+ {[%emt 0:09:53]} Be6 {[%emt 0:04:10]} 10. dxc5 {[%emt 0:01:59]} Bxc5 {[%emt 0:00:08]} 11. Nb3 {[%emt 0:00:40]} Bb6 {[%emt 0:00:20]} 12. Nfd4 {[%emt 0:03:37]} O-O {[%emt 0:01:43]} 13. Bxc6 {[%emt 0:07:07]} bxc6 {[%emt 0:00:10]} 14. Nxc6 {[%emt 0:01:08]} Qd6 {[%emt 0:06:27]} 15. Ne5 {[%emt 0:00:59]} Rfe8 {[%emt 0:10:38]} 16. Bf4 {[%emt 0:12:53]} g5 {[%emt 0:02:27]} 17. Bg3 {[%emt 0:01:13]} Qf8 {[%emt 0:00:52]} 18. Nd4 {[%emt 0:10:08]} Qg7 {[%emt 0:01:59]} 19. Nd3 {[%emt 0:06:12]} Bg4 {[%emt 0:05:29]} 20. f3 {[%emt 0:00:16]} Bd7 {[%emt 0:01:25]} 21. Kh1 {[%emt 0:00:52]} Rxe1+ {[%emt 0:02:57]} 22. Qxe1 {[%emt 0:00:31]} Re8 {[%emt 0:00:07]} 23. Qd2 {[%emt 0:00:43]} Nh5 {[%emt 0:01:33]} 24. Bf2 {[%emt 0:01:17]} g4 {[%emt 0:00:16]} 25. Nb4 {[%emt 0:06:59]} g3 {[%emt 0:03:25]} 26. hxg3 {[%emt 0:01:28]} Nxg3+ {[%emt 0:00:13]} 27. Bxg3 {[%emt 0:02:43]} Qxg3 {[%emt 0:00:03]} 28. Nxd5 {[%emt 0:01:00]} Qh4+ {[%emt 0:02:27]} 29. Kg1 {[%emt 0:00:06]} Bd8 {[%emt 0:01:42]} 30. Qf4 {[%emt 0:03:06]} Re1+ {[%emt 0:00:25]} 31. Rxe1 {[%emt 0:00:07]} Qxe1+ {[%emt 0:00:02]} 32. Kh2 {[%emt 0:00:13]} Bg5 {[%emt 0:00:09]} 33. Qg3 {[%emt 0:02:40]} Qxg3+ {[%emt 0:01:57]} 34. Kxg3 {[%emt 0:00:07]} Kf8 {[%emt 0:00:23]} 35. f4 {[%emt 0:00:36]} Bd8 {[%emt 0:00:06]} 36. c4 {[%emt 0:00:30]} Ke8 {[%emt 0:00:53]} 37. c5 {[%emt 0:00:30]} Be6 {[%emt 0:00:15]} 38. Nxe6 {[%emt 0:01:47]} fxe6 {[%emt 0:00:03]} 39. Nb4 {[%emt 0:00:50]} Kd7 {[%emt 0:00:06]} 40. Kf3 {[%emt 0:01:05]} a5 {[%emt 0:00:37]} 41. Nd3 {[%emt 0:30:11]} Kc6 {[%emt 0:30:04]} 42. Ke4 {[%emt 0:00:25]} Bf6 {[%emt 0:00:04]} 43. Ne5+ {[%emt 0:05:39]} Kb5 {[%emt 0:00:05]} 44. c6 {[%emt 0:00:44]} Bd8 {[%emt 0:00:05]} 45. g4 {[%emt 0:01:10]} 1-0

[Event "Czech Open GM 2020"]
[Site "Pardubice"]
[Date "2020.09.27"]
[Round "8.12"]
[White "Seger, Ruediger"]
[Black "Zwardon, Vojtech"]
[Result "0-1"]
[ECO "B22"]
[WhiteElo "2312"]
[BlackElo "2455"]
[Annotator "ChessBase"]
[PlyCount "61"]
[EventDate "2020.09.21"]
[EventCountry "CZE"]
[SourceTitle "playchess.com"]
[Source "ChessBase"]
[SourceQuality "1"]
[TimeControl "40/5400+30:1800+30"]

1. e4 {[%emt 0:00:00]} c5 {[%emt 0:01:17]} 2. c3 {[%emt 0:00:00]} Nf6 {[%emt 0:00:03]} 3. e5 {[%emt 0:00:00]} Nd5 {[%emt 0:00:03]} 4. d4 {[%emt 0:00:00]} cxd4 {[%emt 0:00:16]} 5. Nf3 {[%emt 0:00:01]} Nc6 {[%emt 0:00:00]} 6. cxd4 {[%emt 0:00:12]} d6 {[%emt 0:00:00]} 7. Bc4 {[%emt 0:00:14]} Be6 {[%emt 0:00:02]} 8. Qe2 {[%emt 0:16:49]} g6 {[%emt 0:01:26]} 9. O-O {[%emt 0:03:38]} Bg7 {[%emt 0:00:18]} 10. Rd1 {[%emt 0:12:20]} O-O {[%emt 0:02:34]} 11. exd6 {[%emt 0:14:15]} Qxd6 {[%emt 0:00:39]} 12. Nc3 {[%emt 0:00:13]} Rfd8 {[%emt 0:06:10]} 13. Bb3 {[%emt 0:09:49]} Qb4 {[%emt 0:07:27]} 14. Nxd5 {[%emt 0:11:16]} Bxd5 {[%emt 0:00:06]} 15. Bd2 {[%emt 0:00:11]} Qb6 {[%emt 0:01:22]} 16. Bxd5 {[%emt 0:00:07]} Rxd5 {[%emt 0:00:03]} 17. Bc3 {[%emt 0:00:06]} e6 {[%emt 0:00:24]} 18. Rd2 {[%emt 0:06:58]} Rad8 {[%emt 0:06:17]} 19. Rad1 {[%emt 0:00:13]} Bh6 {[%emt 0:02:40]} 20. Rc2 {[%emt 0:12:24]} e5 {[%emt 0:02:38]} 21. Be1 {[%emt 0:00:10]} Nxd4 {[%emt 0:05:51]} 22. Nxd4 {[%emt 0:00:13]} exd4 {[%emt 0:00:26]} 23. Qd3 {[%emt 0:00:24]} Qe6 {[%emt 0:00:46]} 24. Re2 {[%emt 0:00:33]} Qd6 {[%emt 0:02:46]} 25. g3 {[%emt 0:00:29]} Qd7 {[%emt 0:00:56]} 26. Bd2 {[%emt 0:01:48]} Bxd2 {[%emt 0:01:58]} 27. Rexd2 {[%emt 0:01:06]} Qg4 {[%emt 0:01:39]} 28. Kg2 {[%emt 0:00:34]} Rh5 {[%emt 0:00:07]} 29. f4 {[%emt 0:02:12]} Re8 {[%emt 0:00:03]} 30. Kg1 Rd8 {[%emt 0:00:02]} 31. Kg2 0-1

[Event "Czech Open GM 2020"]
[Site "Pardubice"]
[Date "2020.09.27"]
[Round "8.13"]
[White "Stalmach, Richard"]
[Black "Koziak, Vitali"]
[Result "1-0"]
[ECO "A87"]
[WhiteElo "2287"]
[BlackElo "2434"]
[Annotator "ChessBase"]
[PlyCount "81"]
[EventDate "2020.09.21"]
[EventCountry "CZE"]
[SourceTitle "playchess.com"]
[Source "ChessBase"]
[SourceQuality "1"]
[TimeControl "40/5400+30:1800+30"]

1. d4 {[%emt 0:00:00]} f5 {[%emt 0:00:00]} 2. Nf3 {[%emt 0:00:32]} Nf6 {[%emt 0:00:45]} 3. c4 {[%emt 0:00:13]} g6 {[%emt 0:04:41]} 4. g3 {[%emt 0:00:26]} Bg7 {[%emt 0:00:11]} 5. Bg2 {[%emt 0:00:10]} O-O {[%emt 0:00:06]} 6. O-O {[%emt 0:00:06]} d6 {[%emt 0:00:04]} 7. Nc3 {[%emt 0:00:10]} Qe8 {[%emt 0:03:21]} 8. d5 {[%emt 0:00:25]} Na6 {[%emt 0:01:12]} 9. Rb1 {[%emt 0:02:07]} Nc5 {[%emt 0:07:32]} 10. b4 {[%emt 0:01:00]} Nce4 {[%emt 0:00:31]} 11. Bb2 {[%emt 0:02:00]} e5 {[%emt 0:24:57]} 12. dxe6 {[%emt 0:03:08]} Bxe6 {[%emt 0:01:20]} 13. Nxe4 {[%emt 0:13:48]} fxe4 {[%emt 0:01:29]} 14. Nd2 {[%emt 0:01:10]} d5 {[%emt 0:15:48]} 15. cxd5 {[%emt 0:05:54]} Bxd5 {[%emt 0:01:23]} 16. Qc2 {[%emt 0:05:17]} Qc6 {[%emt 0:23:24]} 17. Qxc6 {[%emt 0:04:21]} bxc6 {[%emt 0:00:13]} 18. Bxf6 {[%emt 0:01:59]} Rxf6 {[%emt 0:02:18]} 19. Bxe4 {[%emt 0:04:15]} Bxa2 {[%emt 0:03:18]} 20. Rbc1 {[%emt 0:04:57]} Rd8 {[%emt 0:04:24]} 21. Rc2 {[%emt 0:09:50]} Bf7 {[%emt 0:00:12]} 22. Bd3 {[%emt 0:02:12]} Rb8 {[%emt 0:01:06]} 23. Ne4 {[%emt 0:00:41]} Re6 {[%emt 0:00:59]} 24. Ng5 {[%emt 0:04:58]} Rd6 {[%emt 0:00:09]} 25. Nxf7 {[%emt 0:01:28]} Kxf7 {[%emt 0:00:01]} 26. b5 {[%emt 0:00:01]} Ke7 {[%emt 0:02:12]} 27. bxc6 {[%emt 0:01:26]} a5 {[%emt 0:00:11]} 28. Rfc1 {[%emt 0:01:44]} a4 {[%emt 0:00:28]} 29. Ra2 {[%emt 0:01:16]} Ra8 {[%emt 0:00:48]} 30. Kg2 {[%emt 0:07:58]} a3 {[%emt 0:00:06]} 31. Rb1 {[%emt 0:00:06]} Rd5 {[%emt 0:00:41]} 32. f4 {[%emt 0:01:42]} Raa5 {[%emt 0:00:41]} 33. Be4 {[%emt 0:01:20]} Rd4 {[%emt 0:00:52]} 34. Bf3 {[%emt 0:00:28]} Rda4 {[%emt 0:00:36]} 35. e3 {[%emt 0:02:33]} Ra8 {[%emt 0:00:32]} 36. Rb7 {[%emt 0:04:27]} R8a7 {[%emt 0:00:03]} 37. Rb3 {[%emt 0:00:01]} Bb2 {[%emt 0:00:41]} 38. Rd3 {[%emt 0:00:02]} Kf6 {[%emt 0:01:06]} 39. Rd7 {[%emt 0:00:11]} h5 {[%emt 0:00:19]} 40. h4 {[%emt 0:02:18]} Rc4 {[%emt 0:00:27]} 41. Bd5 {[%emt 0:30:38]} 1-0

[Event "Czech Open GM 2020"]
[Site "Pardubice"]
[Date "2020.09.27"]
[Round "8.14"]
[White "Sernecki, Franciszek"]
[Black "Arkell, Keith C"]
[Result "1/2-1/2"]
[ECO "A44"]
[WhiteElo "2248"]
[BlackElo "2429"]
[Annotator "ChessBase"]
[PlyCount "115"]
[EventDate "2020.09.21"]
[EventCountry "CZE"]
[SourceTitle "playchess.com"]
[Source "ChessBase"]
[SourceQuality "1"]
[TimeControl "40/5400+30:1800+30"]

1. d4 {[%emt 0:00:00]} c5 {[%emt 0:01:06]} 2. d5 {[%emt 0:00:00]} e5 {[%emt 0:00:13]} 3. e4 {[%emt 0:00:44]} d6 {[%emt 0:00:05]} 4. Nc3 {[%emt 0:00:27]} Be7 {[%emt 0:00:09]} 5. Nf3 {[%emt 0:00:35]} a6 {[%emt 0:00:04]} 6. a4 {[%emt 0:00:30]} Bg4 {[%emt 0:00:06]} 7. b3 {[%emt 0:00:59]} Nd7 {[%emt 0:01:12]} 8. h3 {[%emt 0:01:36]} Bxf3 {[%emt 0:00:06]} 9. Qxf3 {[%emt 0:00:07]} Bg5 {[%emt 0:00:16]} 10. Bb2 {[%emt 0:00:53]} h5 {[%emt 0:00:12]} 11. h4 {[%emt 0:10:22]} Bh6 {[%emt 0:04:11]} 12. g3 {[%emt 0:02:59]} Ne7 {[%emt 0:00:47]} 13. Bh3 {[%emt 0:01:17]} g6 {[%emt 0:00:25]} 14. O-O {[%emt 0:11:43]} O-O {[%emt 0:01:57]} 15. Bc1 {[%emt 0:18:45]} Bxc1 {[%emt 0:02:21]} 16. Raxc1 {[%emt 0:00:51]} f5 {[%emt 0:03:01]} 17. exf5 {[%emt 0:04:54]} Nxf5 {[%emt 0:00:05]} 18. Qd1 {[%emt 0:09:15]} Nf6 {[%emt 0:13:04]} 19. Qd3 {[%emt 0:02:09]} Qa5 {[%emt 0:06:03]} 20. Rce1 {[%emt 0:07:37]} Rae8 {[%emt 0:35:24]} 21. f4 {[%emt 0:05:36]} e4 {[%emt 0:01:27]} 22. Nxe4 {[%emt 0:02:17]} Kg7 {[%emt 0:01:20]} 23. Bxf5 {[%emt 0:08:34]} gxf5 {[%emt 0:00:08]} 24. Qd2 {[%emt 0:02:19]} Qxd2 {[%emt 0:00:39]} 25. Nxd2 {[%emt 0:00:01]} b5 {[%emt 0:04:48]} 26. axb5 {[%emt 0:00:50]} axb5 {[%emt 0:00:05]} 27. c4 {[%emt 0:00:22]} Ng4 {[%emt 0:00:05]} 28. Rxe8 {[%emt 0:03:07]} Rxe8 {[%emt 0:00:05]} 29. cxb5 {[%emt 0:00:00]} Rb8 {[%emt 0:05:45]} 30. Nc4 {[%emt 0:01:29]} Rxb5 {[%emt 0:00:11]} 31. Rb1 {[%emt 0:00:17]} Rb8 {[%emt 0:00:54]} 32. Nxd6 {[%emt 0:02:49]} Rd8 {[%emt 0:00:41]} 33. Nc4 {[%emt 0:01:11]} Rxd5 {[%emt 0:00:06]} 34. Ra1 {[%emt 0:00:41]} Rd3 {[%emt 0:00:13]} 35. Ra7+ {[%emt 0:00:10]} Kf6 {[%emt 0:00:23]} 36. Ra6+ {[%emt 0:00:19]} Ke7 {[%emt 0:00:06]} 37. Ra7+ {[%emt 0:00:48]} Ke6 {[%emt 0:00:05]} 38. Ra6+ {[%emt 0:00:49]} Kd5 {[%emt 0:01:51]} 39. Rd6+ {[%emt 0:00:36]} Ke4 {[%emt 0:00:01]} 40. Rxd3 {[%emt 0:00:27]} Kxd3 {[%emt 0:00:05]} 41. Ne5+ {[%emt 0:30:43]} Kc3 {[%emt 0:33:59]} 42. Nxg4 {[%emt 0:00:00]} fxg4 {[%emt 0:00:00]} 43. f5 {[%emt 0:00:00]} Kxb3 {[%emt 0:00:00]} 44. f6 {[%emt 0:00:00]} c4 {[%emt 0:00:00]} 45. f7 {[%emt 0:00:00]} c3 {[%emt 0:00:00]} 46. f8=Q {[%emt 0:00:00]} c2 {[%emt 0:00:00]} 47. Qf4 {[%emt 0:00:00]} Kb2 {[%emt 0:00:00]} 48. Qb4+ {[%emt 0:00:00]} Ka2 {[%emt 0:00:00]} 49. Qc3 {[%emt 0:00:00]} Kb1 {[%emt 0:00:00]} 50. Qb3+ {[%emt 0:00:00]} Ka1 {[%emt 0:00:00]} 51. Qa3+ {[%emt 0:00:00]} Kb1 {[%emt 0:00:00]} 52. Qd3 {[%emt 0:00:00]} Kb2 {[%emt 0:00:00]} 53. Qb5+ {[%emt 0:00:00]} Ka2 {[%emt 0:00:00]} 54. Qa4+ {[%emt 0:00:00]} Kb2 {[%emt 0:00:00]} 55. Qb4+ {[%emt 0:00:00]} Ka2 {[%emt 0:00:00]} 56. Qc3 {[%emt 0:00:00]} Kb1 {[%emt 0:00:00]} 57. Qb3+ {[%emt 0:00:00]} Ka1 {[%emt 0:00:00]} 58. Qxc2 {[%emt 0:00:53]} 1/2-1/2

[Event "Czech Open GM 2020"]
[Site "Pardubice"]
[Date "2020.09.27"]
[Round "8.15"]
[White "Pantzar, Milton"]
[Black "Degenhard, Simon"]
[Result "1/2-1/2"]
[ECO "D35"]
[WhiteElo "2424"]
[BlackElo "2271"]
[Annotator "ChessBase"]
[PlyCount "119"]
[EventDate "2020.09.21"]
[EventCountry "CZE"]
[SourceTitle "playchess.com"]
[Source "ChessBase"]
[SourceQuality "1"]
[TimeControl "40/5400+30:1800+30"]

1. d4 {[%emt 0:00:00]} Nf6 {[%emt 0:00:00]} 2. c4 {[%emt 0:00:00]} e6 {[%emt 0:00:00]} 3. Nc3 {[%emt 0:00:00]} d5 {[%emt 0:00:00]} 4. cxd5 {[%emt 0:00:00]} Nxd5 {[%emt 0:00:01]} 5. e4 {[%emt 0:00:24]} Nxc3 {[%emt 0:00:07]} 6. bxc3 {[%emt 0:00:04]} c5 {[%emt 0:00:06]} 7. Rb1 {[%emt 0:01:03]} Be7 {[%emt 0:00:10]} 8. h4 {[%emt 0:00:30]} Nc6 {[%emt 0:05:21]} 9. Nf3 {[%emt 0:01:25]} O-O {[%emt 0:01:56]} 10. h5 {[%emt 0:00:33]} h6 {[%emt 0:06:19]} 11. Be2 {[%emt 0:00:37]} b6 {[%emt 0:00:45]} 12. Rh3 {[%emt 0:00:48]} cxd4 {[%emt 0:08:42]} 13. cxd4 {[%emt 0:00:41]} f5 {[%emt 0:14:59]} 14. exf5 {[%emt 0:14:57]} exf5 {[%emt 0:00:09]} 15. d5 {[%emt 0:04:17]} Nb4 {[%emt 0:05:28]} 16. Ne5 {[%emt 0:18:50]} Bd6 {[%emt 0:19:19]} 17. Ng6 {[%emt 0:24:13]} Re8 {[%emt 0:00:34]} 18. Re3 {[%emt 0:01:11]} Bb7 {[%emt 0:03:26]} 19. Rxe8+ {[%emt 0:04:35]} Qxe8 {[%emt 0:00:03]} 20. Bf4 {[%emt 0:00:29]} Bxf4 {[%emt 0:04:10]} 21. Rxb4 {[%emt 0:00:21]} Bd6 {[%emt 0:00:59]} 22. Rb3 {[%emt 0:07:36]} Qe4 {[%emt 0:05:52]} 23. Kf1 {[%emt 0:01:51]} Bc5 {[%emt 0:07:10]} 24. Bf3 {[%emt 0:01:21]} Qc4+ {[%emt 0:00:16]} 25. Kg1 {[%emt 0:00:26]} Rd8 {[%emt 0:01:04]} 26. Rb2 {[%emt 0:06:09]} Re8 {[%emt 0:07:57]} 27. d6 {[%emt 0:03:19]} Qc3 {[%emt 0:06:51]} 28. Re2 {[%emt 0:04:34]} Be4 {[%emt 0:01:01]} 29. d7 {[%emt 0:00:53]} Rd8 {[%emt 0:00:45]} 30. Bxe4 {[%emt 0:02:06]} fxe4 {[%emt 0:00:25]} 31. Rxe4 {[%emt 0:00:16]} Qf6 {[%emt 0:00:12]} 32. Qd5+ {[%emt 0:00:33]} Kh7 {[%emt 0:00:36]} 33. Rf4 {[%emt 0:00:26]} Qd6 {[%emt 0:00:41]} 34. Qf5 {[%emt 0:01:07]} Kg8 {[%emt 0:00:35]} 35. Qf7+ {[%emt 0:00:09]} Kh7 {[%emt 0:00:05]} 36. Qf5 {[%emt 0:00:02]} Kg8 {[%emt 0:00:27]} 37. Qf7+ {[%emt 0:00:43]} Kh7 {[%emt 0:00:06]} 38. g3 {[%emt 0:01:58]} Qxd7 {[%emt 0:00:58]} 39. Qxd7 {[%emt 0:00:27]} Rxd7 {[%emt 0:00:05]} 40. Re4 {[%emt 0:00:32]} Kg8 {[%emt 0:01:25]} 41. Re2 {[%emt 0:07:36]} Rc7 {[%emt 0:02:47]} 42. Kg2 {[%emt 0:00:55]} b5 {[%emt 0:01:31]} 43. Re6 {[%emt 0:04:18]} b4 {[%emt 0:02:50]} 44. f4 {[%emt 0:03:05]} Kf7 {[%emt 0:11:31]} 45. f5 {[%emt 0:00:00]} Bd4 {[%emt 0:00:44]} 46. Nh8+ {[%emt 0:00:08]} Kf8 {[%emt 0:00:06]} 47. Ng6+ {[%emt 0:00:03]} Kf7 {[%emt 0:00:09]} 48. Kf3 {[%emt 0:01:07]} Rc3+ {[%emt 0:01:36]} 49. Ke4 {[%emt 0:01:03]} Bf6 {[%emt 0:00:44]} 50. Ra6 {[%emt 0:02:44]} Rxg3 {[%emt 0:00:21]} 51. Rxa7+ {[%emt 0:00:05]} Ke8 {[%emt 0:00:11]} 52. Kd5 {[%emt 0:05:33]} Rh3 {[%emt 0:05:30]} 53. Nf4 {[%emt 0:02:52]} Rf3 {[%emt 0:01:13]} 54. Ke4 {[%emt 0:00:43]} Rf2 {[%emt 0:00:22]} 55. Ne6 {[%emt 0:01:07]} Rg2 {[%emt 0:00:55]} 56. Kd5 {[%emt 0:01:11]} Rf2 {[%emt 0:01:54]} 57. Nxg7+ {[%emt 0:01:38]} Bxg7 {[%emt 0:00:22]} 58. Rxg7 {[%emt 0:00:04]} Kf8 {[%emt 0:00:17]} 59. Rb7 {[%emt 0:03:45]} Rxf5+ {[%emt 0:00:20]} 60. Ke6 {[%emt 0:00:23]} 1/2-1/2

[Event "Czech Open GM 2020"]
[Site "Pardubice"]
[Date "2020.09.27"]
[Round "8.16"]
[White "Sorensen, Hampus"]
[Black "Rocco, Federico"]
[Result "1-0"]
[ECO "E12"]
[WhiteElo "2361"]
[BlackElo "2123"]
[Annotator "ChessBase"]
[PlyCount "103"]
[EventDate "2020.09.21"]
[EventCountry "CZE"]
[SourceTitle "playchess.com"]
[Source "ChessBase"]
[SourceQuality "1"]
[TimeControl "40/5400+30:1800+30"]

1. d4 {[%emt 0:00:00]} Nf6 {[%emt 0:00:00]} 2. c4 {[%emt 0:00:00]} e6 {[%emt 0:00:00]} 3. Nf3 {[%emt 0:00:00]} b6 {[%emt 0:00:00]} 4. a3 {[%emt 0:00:28]} Bb7 {[%emt 0:00:14]} 5. Bf4 {[%emt 0:01:33]} c5 {[%emt 0:02:06]} 6. dxc5 {[%emt 0:10:22]} bxc5 {[%emt 0:00:38]} 7. Nc3 {[%emt 0:00:34]} d6 {[%emt 0:13:18]} 8. Qb3 {[%emt 0:09:41]} Bc6 {[%emt 0:07:27]} 9. Rd1 {[%emt 0:03:27]} Be7 {[%emt 0:00:40]} 10. Nb5 {[%emt 0:04:17]} Qa5+ {[%emt 0:03:34]} 11. Qc3 {[%emt 0:06:32]} Qxc3+ {[%emt 0:00:23]} 12. Nxc3 {[%emt 0:00:30]} e5 {[%emt 0:01:06]} 13. Bc1 {[%emt 0:00:23]} Nbd7 {[%emt 0:02:34]} 14. e3 {[%emt 0:01:47]} Rb8 {[%emt 0:06:09]} 15. Be2 {[%emt 0:03:50]} O-O {[%emt 0:00:09]} 16. O-O {[%emt 0:00:23]} Rb6 {[%emt 0:03:37]} 17. Nd2 {[%emt 0:10:30]} e4 {[%emt 0:06:09]} 18. f3 {[%emt 0:02:59]} Ne5 {[%emt 0:02:51]} 19. f4 {[%emt 0:02:32]} Ng6 {[%emt 0:13:49]} 20. g3 {[%emt 0:05:38]} Re8 {[%emt 0:01:40]} 21. Rfe1 {[%emt 0:01:52]} Bd8 {[%emt 0:01:39]} 22. Nb5 {[%emt 0:07:43]} Bxb5 {[%emt 0:05:34]} 23. cxb5 {[%emt 0:00:02]} d5 {[%emt 0:00:52]} 24. Nb3 {[%emt 0:02:22]} Be7 {[%emt 0:00:46]} 25. a4 {[%emt 0:01:59]} Rbb8 {[%emt 0:09:30]} 26. Na5 {[%emt 0:07:20]} d4 {[%emt 0:01:07]} 27. exd4 {[%emt 0:02:08]} cxd4 {[%emt 0:00:17]} 28. Nc6 {[%emt 0:00:34]} Bc5 {[%emt 0:06:13]} 29. b4 {[%emt 0:02:04]} Bb6 {[%emt 0:00:04]} 30. Nxb8 {[%emt 0:01:38]} d3+ {[%emt 0:00:07]} 31. Kg2 {[%emt 0:00:29]} dxe2 {[%emt 0:00:21]} 32. Rxe2 {[%emt 0:00:17]} Rxb8 {[%emt 0:00:06]} 33. a5 {[%emt 0:04:39]} Bd8 {[%emt 0:00:32]} 34. Be3 {[%emt 0:01:30]} Be7 {[%emt 0:02:11]} 35. b6 {[%emt 0:02:20]} axb6 {[%emt 0:00:46]} 36. a6 {[%emt 0:00:06]} Nf8 {[%emt 0:05:16]} 37. a7 {[%emt 0:00:55]} Ra8 {[%emt 0:00:59]} 38. Bxb6 {[%emt 0:00:09]} N6d7 {[%emt 0:01:20]} 39. Rxe4 {[%emt 0:02:14]} Nxb6 {[%emt 0:04:07]} 40. Rxe7 {[%emt 0:00:06]} g6 {[%emt 0:01:09]} 41. Rb7 {[%emt 0:31:22]} Nc8 {[%emt 0:02:09]} 42. Rb8 {[%emt 0:00:00]} Rxa7 {[%emt 0:00:05]} 43. Rxc8 {[%emt 0:00:00]} Kg7 {[%emt 0:00:06]} 44. Rb1 {[%emt 0:00:00]} Rb7 {[%emt 0:00:17]} 45. b5 {[%emt 0:00:00]} Nd7 {[%emt 0:00:08]} 46. Rc6 {[%emt 0:00:00]} Nb6 {[%emt 0:00:05]} 47. Kf3 {[%emt 0:00:00]} h5 {[%emt 0:00:22]} 48. Ke4 {[%emt 0:00:00]} Kf8 {[%emt 0:00:11]} 49. f5 {[%emt 0:00:00]} Kg7 {[%emt 0:00:39]} 50. fxg6 {[%emt 0:00:00]} fxg6 {[%emt 0:00:10]} 51. Kd4 {[%emt 0:00:00]} Kh6 {[%emt 0:01:39]} 52. h4 {[%emt 0:00:00]} 1-0